[Event "Early Titled Tuesday Blitz | February 8 2022"]
[White "Williams, Simon K"]
[Black "Bambino Filho, Antonio Carlos"]
[WhiteFideId "404454"]
[BlackFideId "2113163"]
[WhiteElo "2468"]
[BlackElo "2460"]
[Result "1-0"]
[Round "08"]
[TimeControl "180+1"]
[Date "2022.02.08"]
[WhiteClock "0:00:39"]
[BlackClock "0:00:02"]

1. e4 {[%clk 0:03:00]}  c5 {[%clk 0:03:00]} 2. Be2 {[%clk 0:03:00]}  d6 {[%clk 0:03:00]} 3. d3 {[%clk 0:03:00]}  g6 {[%clk 0:03:00]} 4. f4 {[%clk 0:02:59]}  Bg7 {[%clk 0:03:01]} 5. Nf3 {[%clk 0:02:59]}  Nc6 {[%clk 0:03:01]} 6. O-O {[%clk 0:02:59]}  e6 {[%clk 0:03:01]} 7. c3 {[%clk 0:02:58]}  Nge7 {[%clk 0:03:02]} 8. Be3 {[%clk 0:02:58]}  O-O {[%clk 0:03:01]} 9. d4 {[%clk 0:02:58]}  cxd4 {[%clk 0:03:01]} 10. cxd4 {[%clk 0:02:57]}  Qb6 {[%clk 0:02:56]} 11. Nc3 {[%clk 0:02:52]}  Qxb2 {[%clk 0:02:20]} 12. Nb5 {[%clk 0:02:51]}  Rd8 {[%clk 0:02:08]} 13. a3 {[%clk 0:02:23]}  a6 {[%clk 0:01:58]} 14. Rb1 {[%clk 0:02:21]}  Qa2 {[%clk 0:01:57]} 15. Nc7 {[%clk 0:01:59]}  Rb8 {[%clk 0:01:43]} 16. Qd3 {[%clk 0:01:43]}  d5 {[%clk 0:01:27]} 17. e5 {[%clk 0:01:32]}  Nf5 {[%clk 0:01:12]} 18. Nd2 {[%clk 0:01:00]}  Nxe3 {[%clk 0:00:51]} 19. Qxe3 {[%clk 0:01:01]}  Bf8 {[%clk 0:00:42]} 20. Rb3 {[%clk 0:00:48]}  Bd7 {[%clk 0:00:24]} 21. f5 {[%clk 0:00:43]}  gxf5 {[%clk 0:00:16]} 22. Qg5+ {[%clk 0:00:41]}  Kh8 {[%clk 0:00:16]} 23. Rg3 {[%clk 0:00:40]}  Bh6 {[%clk 0:00:02]} 24. Qf6+ {[%clk 0:00:39]} 1-0


[Site "https://www.chess.com"]

[Event "Early Titled Tuesday Blitz | February 8 2022"]
[White "Xie, Bryan"]
[Black "Dauner, Benedikt"]
[WhiteFideId "30941296"]
[BlackFideId "16225899"]
[WhiteElo "1899"]
[BlackElo "2230"]
[Result "0-1"]
[Round "08"]
[TimeControl "180+1"]
[Date "2022.02.08"]
[WhiteClock "0:00:31"]
[BlackClock "0:01:16"]

1. d4 {[%clk 0:02:55]}  a6 {[%clk 0:02:59]} 2. e4 {[%clk 0:02:48]}  e6 {[%clk 0:02:59]} 3. Nf3 {[%clk 0:02:48]}  d5 {[%clk 0:03:00]} 4. e5 {[%clk 0:02:48]}  c5 {[%clk 0:02:59]} 5. c3 {[%clk 0:02:48]}  Bd7 {[%clk 0:03:00]} 6. Be3 {[%clk 0:02:46]}  Bb5 {[%clk 0:03:00]} 7. Bxb5+ {[%clk 0:02:41]}  axb5 {[%clk 0:03:00]} 8. dxc5 {[%clk 0:02:42]}  Nd7 {[%clk 0:02:57]} 9. b4 {[%clk 0:02:35]}  Qc7 {[%clk 0:02:57]} 10. Bd4 {[%clk 0:02:33]}  Ne7 {[%clk 0:02:56]} 11. Qe2 {[%clk 0:02:32]}  Ng6 {[%clk 0:02:53]} 12. Qxb5 {[%clk 0:02:30]}  Nf4 {[%clk 0:02:51]} 13. O-O {[%clk 0:02:28]}  g5 {[%clk 0:02:50]} 14. Be3 {[%clk 0:02:11]}  Bg7 {[%clk 0:02:33]} 15. Nxg5 {[%clk 0:01:41]}  Bxe5 {[%clk 0:02:29]} 16. Nf3 {[%clk 0:01:40]}  Rg8 {[%clk 0:02:17]} 17. Nxe5 {[%clk 0:01:39]}  Rxg2+ {[%clk 0:01:42]} 18. Kh1 {[%clk 0:01:38]}  Qxe5 {[%clk 0:01:42]} 19. Nd2 {[%clk 0:00:35]}  Rxh2+ {[%clk 0:01:28]} 20. Kxh2 {[%clk 0:00:35]}  Qh5+ {[%clk 0:01:28]} 21. Kg3 {[%clk 0:00:30]}  Qh3+ {[%clk 0:01:15]} 22. Kxf4 {[%clk 0:00:30]}  e5+ {[%clk 0:01:15]} 23. Kg5 {[%clk 0:00:31]}  h6# {[%clk 0:01:16]} 0-1


[Site "https://www.chess.com"]

[Event "Early Titled Tuesday Blitz | February 8 2022"]
[White "Yonal, Timur"]
[Black "Bashirli, Saadat"]
[WhiteFideId "44115725"]
[BlackFideId "13429990"]
[WhiteElo "1762"]
[BlackElo "1173"]
[Result "0-1"]
[Round "08"]
[TimeControl "180+1"]
[Date "2022.02.08"]
[WhiteClock "0:00:02"]
[BlackClock "0:00:05"]

1. e4 {[%clk 0:03:00]}  c5 {[%clk 0:03:00]} 2. Nf3 {[%clk 0:02:47]}  g6 {[%clk 0:02:56]} 3. d4 {[%clk 0:02:36]}  cxd4 {[%clk 0:02:56]} 4. Nxd4 {[%clk 0:02:34]}  Nc6 {[%clk 0:02:53]} 5. Nc3 {[%clk 0:02:23]}  Bg7 {[%clk 0:02:52]} 6. Be3 {[%clk 0:02:16]}  Nf6 {[%clk 0:02:47]} 7. f3 {[%clk 0:02:11]}  d5 {[%clk 0:02:40]} 8. Bb5 {[%clk 0:01:51]}  Bd7 {[%clk 0:02:30]} 9. exd5 {[%clk 0:01:47]}  Nxd4 {[%clk 0:02:29]} 10. Bxd7+ {[%clk 0:01:41]}  Qxd7 {[%clk 0:02:29]} 11. Bxd4 {[%clk 0:01:38]}  O-O {[%clk 0:02:24]} 12. O-O {[%clk 0:01:32]}  Rfd8 {[%clk 0:02:21]} 13. Re1 {[%clk 0:01:11]}  Kf8 {[%clk 0:01:54]} 14. Bc5 {[%clk 0:00:59]}  Re8 {[%clk 0:01:49]} 15. d6 {[%clk 0:00:41]}  e6 {[%clk 0:01:40]} 16. Qe2 {[%clk 0:00:35]}  a6 {[%clk 0:01:36]} 17. a4 {[%clk 0:00:32]}  Rac8 {[%clk 0:01:32]} 18. Bb4 {[%clk 0:00:28]}  Red8 {[%clk 0:01:18]} 19. a5 {[%clk 0:00:26]}  Ne8 {[%clk 0:00:55]} 20. Na4 {[%clk 0:00:22]}  Nxd6 {[%clk 0:00:33]} 21. Nb6 {[%clk 0:00:20]}  Bd4+ {[%clk 0:00:29]} 22. Kh1 {[%clk 0:00:13]}  Bxb6 {[%clk 0:00:29]} 23. axb6 {[%clk 0:00:11]}  Kg8 {[%clk 0:00:19]} 24. Rad1 {[%clk 0:00:10]}  Qc6 {[%clk 0:00:14]} 25. Bc3 {[%clk 0:00:09]}  Nc4 {[%clk 0:00:09]} 26. b3 {[%clk 0:00:07]}  Nxb6 {[%clk 0:00:08]} 27. Bb2 {[%clk 0:00:04]}  Rxd1 {[%clk 0:00:07]} 28. Qxd1 {[%clk 0:00:03]}  Qd5 {[%clk 0:00:06]} 29. Qe2 {[%clk 0:00:03]}  Nd7 {[%clk 0:00:06]} 30. Rd1 {[%clk 0:00:02]}  Qc6 {[%clk 0:00:05]} 0-1


[Site "https://www.chess.com"]

[Event "Early Titled Tuesday Blitz | February 8 2022"]
[White "Zaichenko, Daria"]
[Black "Alghamdi, Ahmed M"]
[WhiteFideId "4197453"]
[BlackFideId "21500150"]
[WhiteElo "2039"]
[BlackElo "2110"]
[Result "0-1"]
[Round "08"]
[TimeControl "180+1"]
[Date "2022.02.08"]
[WhiteClock "0:00:01"]
[BlackClock "0:00:16"]

1. e4 {[%clk 0:03:00]}  e5 {[%clk 0:02:59]} 2. Nf3 {[%clk 0:03:00]}  Nc6 {[%clk 0:02:59]} 3. Bc4 {[%clk 0:03:00]}  Nf6 {[%clk 0:02:58]} 4. d3 {[%clk 0:02:58]}  Be7 {[%clk 0:02:58]} 5. c3 {[%clk 0:02:58]}  d6 {[%clk 0:02:57]} 6. O-O {[%clk 0:02:57]}  O-O {[%clk 0:02:58]} 7. Bb3 {[%clk 0:02:55]}  Kh8 {[%clk 0:02:58]} 8. Nbd2 {[%clk 0:02:53]}  Ng8 {[%clk 0:02:57]} 9. d4 {[%clk 0:02:46]}  f5 {[%clk 0:02:51]} 10. exf5 {[%clk 0:02:43]}  Bxf5 {[%clk 0:02:50]} 11. dxe5 {[%clk 0:02:43]}  dxe5 {[%clk 0:02:24]} 12. h3 {[%clk 0:02:33]}  e4 {[%clk 0:02:19]} 13. Nh2 {[%clk 0:02:33]}  Ne5 {[%clk 0:01:52]} 14. Qe2 {[%clk 0:02:26]}  Qd3 {[%clk 0:01:47]} 15. Re1 {[%clk 0:02:16]}  Bc5 {[%clk 0:01:42]} 16. Bxg8 {[%clk 0:01:47]}  Kxg8 {[%clk 0:01:36]} 17. Nb3 {[%clk 0:01:46]}  Bxf2+ {[%clk 0:01:17]} 18. Qxf2 {[%clk 0:01:36]}  Bxh3 {[%clk 0:01:15]} 19. Qe3 {[%clk 0:01:35]}  Bf5 {[%clk 0:00:58]} 20. Bd2 {[%clk 0:01:26]}  Qd6 {[%clk 0:00:40]} 21. Rad1 {[%clk 0:01:09]}  Nd3 {[%clk 0:00:39]} 22. Rf1 {[%clk 0:01:05]}  Bg6 {[%clk 0:00:36]} 23. Nd4 {[%clk 0:00:49]}  Nxb2 {[%clk 0:00:29]} 24. Qg5 {[%clk 0:00:41]}  Nxd1 {[%clk 0:00:23]} 25. Rxd1 {[%clk 0:00:40]}  Rae8 {[%clk 0:00:18]} 26. Be3 {[%clk 0:00:38]}  c5 {[%clk 0:00:18]} 27. Ng4 {[%clk 0:00:27]}  cxd4 {[%clk 0:00:17]} 28. Rxd4 {[%clk 0:00:26]}  Qe7 {[%clk 0:00:18]} 29. Qd5+ {[%clk 0:00:23]}  Kh8 {[%clk 0:00:17]} 30. Bf4 {[%clk 0:00:18]}  Qh4 {[%clk 0:00:17]} 31. Ne5 {[%clk 0:00:14]}  Qxf4 {[%clk 0:00:15]} 32. Nxg6+ {[%clk 0:00:14]}  hxg6 {[%clk 0:00:15]} 33. Qd7 {[%clk 0:00:13]}  Qf2+ {[%clk 0:00:14]} 34. Kh1 {[%clk 0:00:11]}  Qh4+ {[%clk 0:00:13]} 35. Kg1 {[%clk 0:00:11]}  e3 {[%clk 0:00:13]} 36. Rxh4+ {[%clk 0:00:09]}  Kg8 {[%clk 0:00:12]} 37. Qd5+ {[%clk 0:00:09]}  Rf7 {[%clk 0:00:12]} 38. Rf4 {[%clk 0:00:07]}  Re7 {[%clk 0:00:12]} 39. Rxf7 {[%clk 0:00:03]}  Rxf7 {[%clk 0:00:13]} 40. Qe4 {[%clk 0:00:02]}  Re7 {[%clk 0:00:08]} 41. Qxe7 {[%clk 0:00:02]}  Kh7 {[%clk 0:00:08]} 42. Qxe3 {[%clk 0:00:02]}  a5 {[%clk 0:00:09]} 43. Qe4 {[%clk 0:00:02]}  a4 {[%clk 0:00:10]} 44. Qe5 {[%clk 0:00:02]}  a3 {[%clk 0:00:11]} 45. c4 {[%clk 0:00:02]}  b5 {[%clk 0:00:11]} 46. c5 {[%clk 0:00:03]}  b4 {[%clk 0:00:12]} 47. c6 {[%clk 0:00:03]}  b3 {[%clk 0:00:13]} 48. axb3 {[%clk 0:00:02]}  a2 {[%clk 0:00:14]} 49. c7 {[%clk 0:00:01]}  g5 {[%clk 0:00:15]} 50. Qa1 {[%clk 0:00:01]}  g4 {[%clk 0:00:16]} 0-1


[Site "https://www.chess.com"]

[Event "Early Titled Tuesday Blitz | February 8 2022"]
[White "Zubov, Alexander"]
[Black "Potapova, Margarita"]
[WhiteFideId "14109409"]
[BlackFideId "14126869"]
[WhiteElo "2685"]
[BlackElo "2209"]
[Result "1-0"]
[Round "08"]
[TimeControl "180+1"]
[Date "2022.02.08"]
[WhiteClock "0:00:18"]
[BlackClock "0:00:08"]

1. d4 {[%clk 0:03:00]}  Nf6 {[%clk 0:02:59]} 2. c4 {[%clk 0:03:01]}  e6 {[%clk 0:03:00]} 3. Nc3 {[%clk 0:02:59]}  Bb4 {[%clk 0:03:00]} 4. e3 {[%clk 0:03:00]}  O-O {[%clk 0:02:59]} 5. Ne2 {[%clk 0:02:57]}  d5 {[%clk 0:02:57]} 6. a3 {[%clk 0:02:58]}  Bd6 {[%clk 0:02:57]} 7. Ng3 {[%clk 0:02:57]}  c5 {[%clk 0:02:51]} 8. dxc5 {[%clk 0:02:57]}  Bxc5 {[%clk 0:02:51]} 9. b4 {[%clk 0:02:58]}  Be7 {[%clk 0:02:51]} 10. cxd5 {[%clk 0:02:58]}  Nxd5 {[%clk 0:02:51]} 11. Nxd5 {[%clk 0:02:58]}  Qxd5 {[%clk 0:02:52]} 12. Qxd5 {[%clk 0:02:56]}  exd5 {[%clk 0:02:53]} 13. Bb2 {[%clk 0:02:56]}  a5 {[%clk 0:02:43]} 14. b5 {[%clk 0:02:54]}  Be6 {[%clk 0:02:22]} 15. Nh5 {[%clk 0:02:38]}  f6 {[%clk 0:02:13]} 16. Be2 {[%clk 0:02:35]}  Nd7 {[%clk 0:02:12]} 17. Nf4 {[%clk 0:02:32]}  Bf7 {[%clk 0:02:11]} 18. Bf3 {[%clk 0:02:32]}  Nc5 {[%clk 0:01:46]} 19. Nxd5 {[%clk 0:02:06]}  Nd3+ {[%clk 0:01:33]} 20. Ke2 {[%clk 0:01:37]}  Nxb2 {[%clk 0:01:33]} 21. Nxe7+ {[%clk 0:01:37]}  Kh8 {[%clk 0:01:33]} 22. Rhb1 {[%clk 0:01:37]}  Na4 {[%clk 0:01:31]} 23. Rc1 {[%clk 0:01:36]}  Rfe8 {[%clk 0:00:44]} 24. Rc7 {[%clk 0:01:25]}  Rad8 {[%clk 0:00:37]} 25. Bxb7 {[%clk 0:01:19]}  Nb6 {[%clk 0:00:22]} 26. Bc6 {[%clk 0:01:11]}  Bc4+ {[%clk 0:00:20]} 27. Kf3 {[%clk 0:01:11]}  Rf8 {[%clk 0:00:21]} 28. Rc1 {[%clk 0:01:04]}  Be6 {[%clk 0:00:18]} 29. Ra7 {[%clk 0:00:54]}  Nc4 {[%clk 0:00:18]} 30. a4 {[%clk 0:00:52]}  Ne5+ {[%clk 0:00:12]} 31. Kg3 {[%clk 0:00:51]}  Nd3 {[%clk 0:00:11]} 32. Rc3 {[%clk 0:00:45]}  Nb2 {[%clk 0:00:10]} 33. b6 {[%clk 0:00:45]}  Rb8 {[%clk 0:00:10]} 34. b7 {[%clk 0:00:45]}  Nc4 {[%clk 0:00:10]} 35. Rxc4 {[%clk 0:00:28]}  Bxc4 {[%clk 0:00:09]} 36. Rxa5 {[%clk 0:00:29]}  Rf7 {[%clk 0:00:07]} 37. Ra8 {[%clk 0:00:28]}  Rff8 {[%clk 0:00:08]} 38. Nc8 {[%clk 0:00:18]} 1-0


[Site "https://www.chess.com"]

[Event "Early Titled Tuesday Blitz | February 8 2022"]
[White "Alavkin, Arseny"]
[Black "Guliyev, Namig"]
[WhiteFideId "4120612"]
[BlackFideId "13400363"]
[WhiteElo "2391"]
[BlackElo "2487"]
[Result "1/2-1/2"]
[Round "09"]
[TimeControl "180+1"]
[Date "2022.02.08"]
[WhiteClock "0:00:51"]
[BlackClock "0:00:18"]

1. d4 {[%clk 0:02:54]}  d5 {[%clk 0:02:58]} 2. c4 {[%clk 0:02:52]}  dxc4 {[%clk 0:02:58]} 3. Nf3 {[%clk 0:02:52]}  Nf6 {[%clk 0:02:59]} 4. e3 {[%clk 0:02:52]}  a6 {[%clk 0:02:59]} 5. Bxc4 {[%clk 0:02:52]}  e6 {[%clk 0:03:00]} 6. O-O {[%clk 0:02:52]}  c5 {[%clk 0:02:59]} 7. dxc5 {[%clk 0:02:53]}  Bxc5 {[%clk 0:02:59]} 8. Qxd8+ {[%clk 0:02:53]}  Kxd8 {[%clk 0:03:00]} 9. Nc3 {[%clk 0:02:53]}  Ke7 {[%clk 0:02:59]} 10. Nd2 {[%clk 0:02:53]}  b5 {[%clk 0:02:59]} 11. Be2 {[%clk 0:02:53]}  Bb7 {[%clk 0:02:59]} 12. Nb3 {[%clk 0:02:54]}  Bd6 {[%clk 0:02:59]} 13. Na5 {[%clk 0:02:49]}  Bc8 {[%clk 0:02:56]} 14. a4 {[%clk 0:02:47]}  b4 {[%clk 0:02:54]} 15. Nb1 {[%clk 0:02:46]}  Ra7 {[%clk 0:02:51]} 16. Nd2 {[%clk 0:02:45]}  Rc7 {[%clk 0:02:50]} 17. Ndb3 {[%clk 0:02:43]}  e5 {[%clk 0:02:42]} 18. Bd2 {[%clk 0:02:38]}  Be6 {[%clk 0:02:42]} 19. Rfd1 {[%clk 0:02:36]}  Rc2 {[%clk 0:02:35]} 20. Rab1 {[%clk 0:02:26]}  Rhc8 {[%clk 0:02:32]} 21. Bd3 {[%clk 0:02:24]}  R2c7 {[%clk 0:02:28]} 22. Be1 {[%clk 0:02:24]}  Nc6 {[%clk 0:01:53]} 23. Nxc6+ {[%clk 0:02:15]}  Rxc6 {[%clk 0:01:53]} 24. Na5 {[%clk 0:02:15]}  Rb6 {[%clk 0:01:46]} 25. b3 {[%clk 0:02:08]}  e4 {[%clk 0:01:28]} 26. Bf1 {[%clk 0:01:39]}  Be5 {[%clk 0:01:27]} 27. Nc4 {[%clk 0:01:35]}  Bxc4 {[%clk 0:01:25]} 28. Bxc4 {[%clk 0:01:36]}  a5 {[%clk 0:01:24]} 29. Kf1 {[%clk 0:01:32]}  Rcc6 {[%clk 0:01:21]} 30. h3 {[%clk 0:01:31]}  Rd6 {[%clk 0:01:22]} 31. Ke2 {[%clk 0:01:31]}  Nd7 {[%clk 0:01:19]} 32. Rbc1 {[%clk 0:01:27]}  f5 {[%clk 0:01:14]} 33. Bb5 {[%clk 0:01:23]}  Rxd1 {[%clk 0:01:13]} 34. Kxd1 {[%clk 0:01:24]}  Bd6 {[%clk 0:00:58]} 35. Rc8 {[%clk 0:01:21]}  Rb8 {[%clk 0:00:57]} 36. Rc6 {[%clk 0:01:17]}  Rb6 {[%clk 0:00:52]} 37. Rc8 {[%clk 0:01:09]}  Rb8 {[%clk 0:00:52]} 38. Rxb8 {[%clk 0:01:09]}  Bxb8 {[%clk 0:00:51]} 39. Bxd7 {[%clk 0:01:08]}  Kxd7 {[%clk 0:00:50]} 40. Ke2 {[%clk 0:01:08]}  h5 {[%clk 0:00:47]} 41. Bd2 {[%clk 0:01:00]}  Ke6 {[%clk 0:00:46]} 42. Bc1 {[%clk 0:01:00]}  Be5 {[%clk 0:00:45]} 43. Bd2 {[%clk 0:01:01]}  h4 {[%clk 0:00:41]} 44. Be1 {[%clk 0:01:01]}  g5 {[%clk 0:00:41]} 45. Bd2 {[%clk 0:01:01]}  Kd5 {[%clk 0:00:35]} 46. Be1 {[%clk 0:01:01]}  Bc3 {[%clk 0:00:34]} 47. Bd2 {[%clk 0:01:01]}  g4 {[%clk 0:00:30]} 48. Be1 {[%clk 0:00:59]}  Ke5 {[%clk 0:00:24]} 49. Bd2 {[%clk 0:00:49]}  Bxd2 {[%clk 0:00:24]} 50. Kxd2 {[%clk 0:00:50]}  Kd5 {[%clk 0:00:17]} 51. Ke2 {[%clk 0:00:50]}  Ke5 {[%clk 0:00:18]} 52. Kd2 {[%clk 0:00:50]}  Kd5 {[%clk 0:00:18]} 53. Ke1 {[%clk 0:00:50]}  Ke5 {[%clk 0:00:18]} 54. Kd2 {[%clk 0:00:51]} 1/2-1/2


[Site "https://www.chess.com"]

[Event "Early Titled Tuesday Blitz | February 8 2022"]
[White "Alghamdi, Ahmed M"]
[Black "Osmonbekov, Talaibek"]
[WhiteFideId "21500150"]
[BlackFideId "2017253"]
[WhiteElo "2110"]
[BlackElo "2135"]
[Result "1-0"]
[Round "09"]
[TimeControl "180+1"]
[Date "2022.02.08"]
[WhiteClock "0:00:57"]
[BlackClock "0:00:01"]

1. e4 {[%clk 0:03:00]}  c5 {[%clk 0:02:56]} 2. Nf3 {[%clk 0:02:59]}  d6 {[%clk 0:02:54]} 3. d4 {[%clk 0:02:55]}  cxd4 {[%clk 0:02:55]} 4. Qxd4 {[%clk 0:02:55]}  Nf6 {[%clk 0:02:56]} 5. Nc3 {[%clk 0:02:55]}  Nc6 {[%clk 0:02:56]} 6. Bb5 {[%clk 0:02:53]}  Bd7 {[%clk 0:02:56]} 7. Bxc6 {[%clk 0:02:53]}  Bxc6 {[%clk 0:02:56]} 8. Bg5 {[%clk 0:02:54]}  Qa5 {[%clk 0:02:48]} 9. Bxf6 {[%clk 0:02:51]}  gxf6 {[%clk 0:02:49]} 10. O-O-O {[%clk 0:02:51]}  O-O-O {[%clk 0:02:29]} 11. Qc4 {[%clk 0:02:43]}  e6 {[%clk 0:02:24]} 12. Nd4 {[%clk 0:02:42]}  Qb6 {[%clk 0:01:55]} 13. f4 {[%clk 0:02:32]}  Kb8 {[%clk 0:01:50]} 14. f5 {[%clk 0:02:27]}  d5 {[%clk 0:01:38]} 15. exd5 {[%clk 0:02:17]}  Bxd5 {[%clk 0:01:32]} 16. Nxd5 {[%clk 0:02:16]}  Rxd5 {[%clk 0:01:32]} 17. Kb1 {[%clk 0:02:02]}  Ba3 {[%clk 0:00:55]} 18. Nb3 {[%clk 0:01:57]}  Rc8 {[%clk 0:00:47]} 19. Qe2 {[%clk 0:01:37]}  Rxf5 {[%clk 0:00:31]} 20. bxa3 {[%clk 0:01:29]}  a5 {[%clk 0:00:29]} 21. a4 {[%clk 0:01:15]}  Rf2 {[%clk 0:00:28]} 22. Qd3 {[%clk 0:01:14]}  Rxg2 {[%clk 0:00:20]} 23. Rd2 {[%clk 0:01:09]}  Rg4 {[%clk 0:00:12]} 24. Qd6+ {[%clk 0:01:08]}  Qxd6 {[%clk 0:00:12]} 25. Rxd6 {[%clk 0:01:09]}  Rxa4 {[%clk 0:00:12]} 26. Rd7 {[%clk 0:01:08]}  Rb4 {[%clk 0:00:12]} 27. Kb2 {[%clk 0:01:05]}  a4 {[%clk 0:00:09]} 28. Ka3 {[%clk 0:01:05]}  Rb6 {[%clk 0:00:09]} 29. Kxa4 {[%clk 0:01:04]}  Rxc2 {[%clk 0:00:09]} 30. Ka3 {[%clk 0:01:01]}  Ra6+ {[%clk 0:00:06]} 31. Kb4 {[%clk 0:01:01]}  Rb6+ {[%clk 0:00:06]} 32. Ka5 {[%clk 0:00:58]}  Ra6+ {[%clk 0:00:05]} 33. Kb5 {[%clk 0:00:58]}  Rcxa2 {[%clk 0:00:03]} 34. Rhd1 {[%clk 0:00:57]}  Rb2 {[%clk 0:00:02]} 35. Rd8+ {[%clk 0:00:56]}  Ka7 {[%clk 0:00:02]} 36. R8d3 {[%clk 0:00:56]}  Rb6+ {[%clk 0:00:01]} 37. Kc4 {[%clk 0:00:56]}  Rc6+ {[%clk 0:00:01]} 38. Kb4 {[%clk 0:00:57]} 1-0


[Site "https://www.chess.com"]

[Event "Early Titled Tuesday Blitz | February 8 2022"]
[White "Atzl, Florian"]
[Black "Manukyan, Artyom"]
[WhiteFideId "1635891"]
[BlackFideId "13305786"]
[WhiteElo "2085"]
[BlackElo "2034"]
[Result "0-1"]
[Round "09"]
[TimeControl "180+1"]
[Date "2022.02.08"]
[WhiteClock "0:01:13"]
[BlackClock "0:01:18"]

1. e4 {[%clk 0:03:00]}  e6 {[%clk 0:02:58]} 2. d4 {[%clk 0:03:00]}  d5 {[%clk 0:02:59]} 3. Nd2 {[%clk 0:03:01]}  c5 {[%clk 0:02:59]} 4. exd5 {[%clk 0:03:00]}  Qxd5 {[%clk 0:02:59]} 5. Ngf3 {[%clk 0:02:59]}  cxd4 {[%clk 0:02:59]} 6. Bc4 {[%clk 0:02:53]}  Qd6 {[%clk 0:02:59]} 7. O-O {[%clk 0:02:52]}  Nc6 {[%clk 0:02:57]} 8. Re1 {[%clk 0:02:51]}  Nf6 {[%clk 0:02:57]} 9. Nb3 {[%clk 0:02:48]}  a6 {[%clk 0:02:57]} 10. a4 {[%clk 0:02:46]}  Qc7 {[%clk 0:02:56]} 11. Bf1 {[%clk 0:02:43]}  Bb4 {[%clk 0:02:46]} 12. Bd2 {[%clk 0:02:28]}  O-O {[%clk 0:02:30]} 13. Nfxd4 {[%clk 0:02:24]}  Bd6 {[%clk 0:02:22]} 14. Nf3 {[%clk 0:02:20]}  h6 {[%clk 0:02:20]} 15. Bc3 {[%clk 0:02:19]}  Nd5 {[%clk 0:02:19]} 16. Bd2 {[%clk 0:02:01]}  b6 {[%clk 0:02:11]} 17. Nbd4 {[%clk 0:01:57]}  Bb7 {[%clk 0:02:07]} 18. h3 {[%clk 0:01:51]}  Rfd8 {[%clk 0:02:05]} 19. Qc1 {[%clk 0:01:47]}  Nxd4 {[%clk 0:01:56]} 20. Nxd4 {[%clk 0:01:47]}  Bh2+ {[%clk 0:01:52]} 21. Kh1 {[%clk 0:01:46]}  Bf4 {[%clk 0:01:53]} 22. Bxf4 {[%clk 0:01:39]}  Nxf4 {[%clk 0:01:54]} 23. c3 {[%clk 0:01:37]}  Nxh3 {[%clk 0:01:48]} 24. Qe3 {[%clk 0:01:37]}  Nf4 {[%clk 0:01:42]} 25. Rad1 {[%clk 0:01:32]}  Rd5 {[%clk 0:01:40]} 26. Nf3 {[%clk 0:01:20]}  Rad8 {[%clk 0:01:38]} 27. Rd4 {[%clk 0:01:18]}  Rh5+ {[%clk 0:01:26]} 28. Kg1 {[%clk 0:01:17]}  Rxd4 {[%clk 0:01:23]} 29. Nxd4 {[%clk 0:01:12]}  Ne2+ {[%clk 0:01:16]} 30. Bxe2 {[%clk 0:01:12]}  Qh2+ {[%clk 0:01:17]} 31. Kf1 {[%clk 0:01:13]}  Qh1# {[%clk 0:01:18]} 0-1


[Site "https://www.chess.com"]

[Event "Early Titled Tuesday Blitz | February 8 2022"]
[White "Bacrot, Etienne"]
[Black "Xiong, Jeffery"]
[WhiteFideId "605506"]
[BlackFideId "2047640"]
[WhiteElo "2673"]
[BlackElo "2727"]
[Result "0-1"]
[Round "09"]
[TimeControl "180+1"]
[Date "2022.02.08"]
[WhiteClock "0:01:05"]
[BlackClock "0:00:41"]

1. Nf3 {[%clk 0:03:00]}  c5 {[%clk 0:02:59]} 2. c4 {[%clk 0:02:59]}  Nf6 {[%clk 0:02:58]} 3. Nc3 {[%clk 0:02:58]}  b6 {[%clk 0:02:58]} 4. d4 {[%clk 0:02:58]}  cxd4 {[%clk 0:02:59]} 5. Nxd4 {[%clk 0:02:58]}  Bb7 {[%clk 0:02:59]} 6. f3 {[%clk 0:02:58]}  e6 {[%clk 0:03:00]} 7. e4 {[%clk 0:02:59]}  d6 {[%clk 0:02:58]} 8. Be3 {[%clk 0:02:58]}  Be7 {[%clk 0:02:59]} 9. g4 {[%clk 0:02:58]}  a6 {[%clk 0:02:58]} 10. h4 {[%clk 0:02:58]}  Nfd7 {[%clk 0:02:57]} 11. g5 {[%clk 0:02:58]}  h6 {[%clk 0:02:57]} 12. g6 {[%clk 0:02:53]}  Bxh4+ {[%clk 0:02:58]} 13. Ke2 {[%clk 0:02:49]}  Bf6 {[%clk 0:02:56]} 14. gxf7+ {[%clk 0:02:44]}  Kxf7 {[%clk 0:02:57]} 15. Bh3 {[%clk 0:02:44]}  Nf8 {[%clk 0:02:52]} 16. Qb3 {[%clk 0:02:39]}  Nbd7 {[%clk 0:02:44]} 17. Rad1 {[%clk 0:02:37]}  Qe7 {[%clk 0:02:30]} 18. Na4 {[%clk 0:02:28]}  Nc5 {[%clk 0:02:20]} 19. Nxc5 {[%clk 0:02:16]}  bxc5 {[%clk 0:02:19]} 20. Bxe6+ {[%clk 0:02:11]}  Nxe6 {[%clk 0:02:10]} 21. Nf5 {[%clk 0:02:11]}  Qc7 {[%clk 0:02:01]} 22. Nxd6+ {[%clk 0:02:06]}  Ke7 {[%clk 0:02:01]} 23. Qxb7 {[%clk 0:01:54]}  Qxb7 {[%clk 0:02:01]} 24. Nxb7 {[%clk 0:01:54]}  Rhb8 {[%clk 0:01:54]} 25. Nxc5 {[%clk 0:01:53]}  Rxb2+ {[%clk 0:01:55]} 26. Rd2 {[%clk 0:01:52]}  Rxd2+ {[%clk 0:01:24]} 27. Kxd2 {[%clk 0:01:53]}  Rd8+ {[%clk 0:01:24]} 28. Ke2 {[%clk 0:01:46]}  Rb8 {[%clk 0:01:23]} 29. Nb3 {[%clk 0:01:39]}  Rb4 {[%clk 0:01:21]} 30. Rc1 {[%clk 0:01:37]}  Ra4 {[%clk 0:01:21]} 31. Rc2 {[%clk 0:01:37]}  h5 {[%clk 0:01:22]} 32. c5 {[%clk 0:01:34]}  Be5 {[%clk 0:01:20]} 33. c6 {[%clk 0:01:33]}  h4 {[%clk 0:01:21]} 34. Nc5 {[%clk 0:01:29]}  Nxc5 {[%clk 0:01:12]} 35. Bxc5+ {[%clk 0:01:28]}  Kd8 {[%clk 0:01:13]} 36. Bb6+ {[%clk 0:01:26]}  Kc8 {[%clk 0:01:14]} 37. c7 {[%clk 0:01:17]}  h3 {[%clk 0:01:06]} 38. Kf2 {[%clk 0:01:17]}  Rb4 {[%clk 0:01:01]} 39. Be3 {[%clk 0:01:11]}  Rb1 {[%clk 0:00:51]} 40. Bc1 {[%clk 0:01:05]}  h2 {[%clk 0:00:41]} 0-1


[Site "https://www.chess.com"]